bitfinex/quotes_BTCUSD_20251201
["timestamp","ask_amount","ask_price","bid_price","bid_amount"]
[1764561880319,0.25133383,86342.0,86341.0,6.87e-05]
[1764561880522,0.31385682,86342.0,86341.0,6.87e-05]
[1764561880725,0.338699,86342.0,86341.0,6.87e-05]
[1764561881031,0.338699,86342.0,86334.0,0.0013794]
[1764561881032,0.6285156,86335.0,86334.0,0.0013794]
[1764561881662,0.55465575,86335.0,86334.0,0.0013794]
[1764561881941,0.57335261,86335.0,86334.0,0.0013794]
[1764561882122,0.6358756,86335.0,86334.0,0.0013794]
[1764561882323,0.6408756,86335.0,86334.0,0.0013794]
[1764561882645,0.6358756,86335.0,86334.0,0.0013794]
[1764561882822,0.66068814,86335.0,86334.0,0.0013794]
[1764561883356,0.6398756,86335.0,86334.0,0.0013794]
[1764561884319,0.6368756,86335.0,86334.0,0.0013794]
[1764561884747,0.6418756,86335.0,86334.0,0.0013794]
[1764561889201,0.23174702,86301.0,86300.0,0.000702]
[1764561889416,0.23174702,86301.0,86300.0,0.0234229]
[1764561890199,0.24308388,86301.0,86300.0,0.0234229]
[1764561890404,0.24308388,86301.0,86300.0,0.0244229]
[1764561891103,0.23174702,86301.0,86300.0,0.00577071]
[1764561891328,0.24308388,86301.0,86300.0,0.00577071]
[1764561892006,0.24308388,86301.0,86300.0,0.00177071]
[1764561892208,0.24308388,86301.0,86300.0,0.00377071]
[1764561892568,0.24308388,86301.0,86300.0,0.00277071]
[1764561894667,0.24308388,86301.0,86300.0,0.0038551]
[1764561897561,0.23910702,86301.0,86300.0,0.0038551]
[1764561901427,0.25044388,86301.0,86300.0,0.0038551]
[1764561904580,0.23910702,86301.0,86300.0,0.0038551]
[1764561904804,0.25044388,86301.0,86300.0,0.0038551]
[1764561905020,0.23174702,86301.0,86300.0,0.0204651]
[1764561905169,0.23910702,86301.0,86300.0,0.0204651]
[1764561905770,0.23910702,86301.0,86300.0,0.0038551]
[1764561906592,0.01158533,86316.0,86307.0,0.01158654]
[1764561906795,0.24329772,86314.0,86313.0,0.01661]
[1764561907128,0.25065772,86314.0,86313.0,0.02265219]
[1764561907660,0.26199458,86314.0,86313.0,0.02265219]
[1764561907874,0.26199458,86314.0,86313.0,0.02465219]
[1764561908105,0.25065772,86314.0,86313.0,0.02465219]
[1764561908903,0.23174702,86301.0,86300.0,0.00077071]
[1764561909082,0.23174702,86301.0,86300.0,0.0234229]
[1764561909283,0.23174702,86301.0,86300.0,0.0400329]
[1764561910373,0.23174702,86301.0,86300.0,0.0234229]
[1764561910572,0.23274702,86301.0,86300.0,0.0284229]
[1764561911127,0.24010702,86301.0,86300.0,0.0284229]
[1764561911726,0.24010702,86301.0,86300.0,0.0694329]
[1764561912633,0.24010702,86301.0,86300.0,0.0284229]
[1764561912826,0.24010702,86301.0,86300.0,0.02950729]
[1764561913951,0.25144388,86301.0,86300.0,0.02950729]
[1764561914158,0.001,86301.0,86300.0,0.07051729]
[1764561914341,0.01158345,86330.0,86323.0,0.01158439]
[1764561914542,0.00736,86336.0,86332.0,0.04032319]
[1764561914742,0.01158372,86328.0,86322.0,0.01213]
[1764561915018,0.24324629,86333.0,86325.0,0.2316805]
[1764561915195,0.24324629,86333.0,86324.0,0.11555538]
[1764561915196,0.01158372,86328.0,86327.0,0.01661]
[1764561916062,0.23168259,86325.0,86323.0,0.02265219]
[1764561916263,0.01158386,86327.0,86323.0,0.02265219]
[1764561916610,0.01158386,86327.0,86324.0,0.01661]
[1764561916809,0.01158399,86326.0,86323.0,0.02265219]
[1764561917009,0.23168259,86325.0,86323.0,0.02265219]
[1764561917519,0.01158399,86326.0,86323.0,0.02265219]
[1764561917815,0.2432639,86326.0,86323.0,0.02265219]
[1764561917959,0.23168493,86325.0,86323.0,0.02265219]
[1764561919179,0.01158399,86326.0,86323.0,0.02265219]
[1764561919419,0.01158399,86326.0,86323.0,0.03423658]
[1764561919619,0.01158399,86326.0,86323.0,0.02265219]
[1764561920784,0.01158399,86326.0,86323.0,0.03423658]
[1764561920989,0.01158399,86326.0,86325.0,0.00028696]
[1764561921177,0.2432639,86326.0,86325.0,0.00028696]
[1764561922602,0.01158399,86326.0,86325.0,0.00028696]
[1764561923112,0.37488083,86326.0,86325.0,0.00028696]
[1764561923305,0.33458399,86326.0,86325.0,0.00028696]
[1764561923545,0.34592085,86326.0,86325.0,0.00028696]
[1764561923746,0.33458399,86326.0,86325.0,0.00028696]
[1764561924567,0.34592085,86326.0,86325.0,0.00028696]
[1764561928374,0.40844384,86326.0,86325.0,0.00028696]
[1764561928760,0.43688503,86326.0,86325.0,0.00028696]
[1764561929008,0.43788503,86326.0,86325.0,0.00028696]
[1764561929159,0.43688503,86326.0,86325.0,0.00028696]
[1764561929364,0.01158708,86303.0,86300.0,0.000702]
[1764561929560,0.24308388,86301.0,86300.0,0.00077071]
[1764561930161,0.24308388,86301.0,86300.0,0.0015681]
[1764561931670,0.24308388,86301.0,86300.0,0.0035681]
[1764561932100,0.24308388,86301.0,86300.0,0.0015681]
[1764561932914,0.24308388,86301.0,86300.0,0.0025681]
[1764561937835,0.56608388,86301.0,86300.0,0.0025681]
[1764561938242,0.56608388,86301.0,86300.0,0.0015681]
[1764561938447,0.56608388,86301.0,86300.0,0.0055681]
[1764561938761,0.56608388,86301.0,86300.0,0.0015681]
[1764561939091,0.56608388,86301.0,86300.0,0.0045681]
[1764561941415,0.57344388,86301.0,86300.0,0.0045681]
[1764561945064,0.56210702,86301.0,86300.0,0.0045681]
[1764561945483,0.57344388,86301.0,86300.0,0.0045681]
[1764561946278,0.56210702,86301.0,86300.0,0.0045681]
[1764561946481,0.57344388,86301.0,86300.0,0.0045681]
[1764561949235,0.74966978,86301.0,86300.0,0.0045681]
[1764561949427,0.63596687,86301.0,86300.0,0.0045681]
[1764561949576,0.62860687,86301.0,86300.0,0.0045681]
[1764561949777,0.56608388,86301.0,86300.0,0.0045681]
[1764561949983,0.57340388,86301.0,86300.0,0.0045681]
[1764561950812,0.57340388,86301.0,86300.0,0.0015681]
[1764561953329,0.57344388,86301.0,86300.0,0.0015681]
[1764561955488,0.56206702,86301.0,86300.0,0.0015681]
[1764561956106,0.57340388,86301.0,86300.0,0.0015681]
[1764561956266,0.56206702,86301.0,86300.0,0.0015681]
[1764561956453,0.57340388,86301.0,86300.0,0.0015681]
[1764561957513,0.57340388,86301.0,86300.0,0.0025681]
[1764561958534,0.23174702,86301.0,86300.0,0.0025681]
[1764561958763,0.23906702,86301.0,86300.0,0.0417781]
[1764561958965,0.23906702,86301.0,86300.0,0.0025681]
[1764561959444,0.25040388,86301.0,86300.0,0.0025681]
[1764561960472,0.23906702,86301.0,86300.0,0.0025681]
[1764561960684,0.23906702,86301.0,86300.0,0.0178981]
[1764561961180,0.23906702,86301.0,86300.0,0.0025681]
[1764561961606,0.23174702,86301.0,86300.0,0.0417781]
[1764561962375,0.23174702,86301.0,86300.0,0.0178981]
[1764561962632,0.23174702,86301.0,86300.0,0.0417781]
[1764561963839,0.23174702,86301.0,86300.0,0.0168981]
[1764561964260,0.23174702,86301.0,86300.0,0.0188981]
[1764561964562,0.23174702,86301.0,86300.0,0.0427781]
[1764561965778,0.23174702,86301.0,86300.0,0.0188981]
[1764561965928,0.24333111,86303.0,86300.0,0.0427781]
[1764561966283,0.24333111,86303.0,86302.0,0.13111112]
[1764561966647,0.24333111,86303.0,86302.0,0.02714]
[1764561967235,0.24273111,86303.0,86302.0,0.02714]
[1764561968192,0.24273111,86303.0,86302.0,0.05102]
[1764561968388,0.24273111,86303.0,86302.0,0.05202]
[1764561969387,0.25406797,86303.0,86302.0,0.01281]
[1764561970539,0.25406797,86303.0,86302.0,0.001]
[1764561971286,0.25406797,86303.0,86302.0,0.00173358]
[1764561971496,0.24273111,86303.0,86302.0,0.04094358]
[1764561971894,0.24273111,86303.0,86302.0,0.01706358]
[1764561974896,0.24273111,86303.0,86302.0,0.04094358]
[1764561975969,0.01158547,86315.0,86302.0,0.04094358]
[1764561975970,0.01158453,86322.0,86302.0,0.05253079]
[1764561976309,0.01158547,86315.0,86311.0,0.01181]
[1764561976556,0.2432867,86318.0,86314.0,0.02714]
[1764561976761,0.0115852,86317.0,86315.0,0.01533]
[1764561976900,0.24329188,86317.0,86315.0,0.02329]
[1764561977099,0.24329188,86317.0,86316.0,0.01595]
[1764561977518,0.24329188,86317.0,86316.0,0.03924]
[1764561977684,0.002,86318.0,86316.0,0.27094514]
[1764561977903,0.01158278,86335.0,86320.0,0.0115848]
[1764561977904,0.01158332,86331.0,86320.0,0.0115848]
[1764561978130,0.01158292,86334.0,86328.0,0.01177]
[1764561978332,0.23165885,86334.0,86333.0,0.02772]
[1764561978529,0.23165885,86334.0,86333.0,0.05037219]
[1764561978925,0.01158278,86335.0,86333.0,0.05037219]
[1764561979307,0.23165844,86334.0,86333.0,0.05037219]
[1764561979646,0.23165844,86334.0,86333.0,0.02265219]
[1764561980056,0.01158278,86335.0,86333.0,0.03860219]
[1764561980203,0.01158278,86335.0,86334.0,0.01595]
[1764561980613,0.01158238,86338.0,86334.0,0.03924]
[1764561980814,0.25055089,86338.0,86337.0,0.01595]
[1764561981052,0.00732,86338.0,86337.0,0.01595]
[1764561981923,0.01158265,86336.0,86333.0,0.02265219]
[1764561982323,0.23165575,86335.0,86333.0,0.02265219]
[1764561982483,0.01158265,86336.0,86333.0,0.02265219]
[1764561983308,0.02090238,86338.0,86333.0,0.02265219]
[1764561983488,0.01158265,86336.0,86333.0,0.02265219]
[1764561983695,0.01258265,86336.0,86333.0,0.02265219]
[1764561983898,0.24423615,86336.0,86333.0,0.02265219]
[1764561984146,0.23165844,86334.0,86333.0,0.02265219]
[1764561984676,0.25255237,86338.0,86317.0,0.01184031]
[1764561984677,0.0115848,86320.0,86319.0,0.02265219]
[1764561984875,0.0115848,86320.0,86319.0,0.0227209]
[1764561984876,0.24328304,86320.0,86319.0,0.0227209]
[1764561985293,0.25461118,86323.0,86319.0,0.0392309]
[1764561985506,0.23169601,86320.0,86319.0,6.871e-05]
[1764561986385,0.24303287,86320.0,86319.0,6.871e-05]
[1764561987143,0.24303287,86320.0,86319.0,0.00106871]
[1764561989318,0.24303287,86320.0,86319.0,6.871e-05]
[1764561989535,0.24403287,86320.0,86319.0,6.871e-05]
[1764561990606,0.62955586,86320.0,86319.0,6.871e-05]
[1764561992475,0.55569601,86320.0,86319.0,6.871e-05]
[1764561992657,0.57435287,86320.0,86319.0,6.871e-05]
[1764561993596,0.25135287,86320.0,86319.0,6.871e-05]
[1764561996390,0.24001601,86320.0,86319.0,6.871e-05]
[1764561996690,0.25135287,86320.0,86319.0,6.871e-05]
[1764561997912,0.24001601,86320.0,86319.0,6.871e-05]
[1764562000404,0.00832,86320.0,86319.0,0.04033871]
[1764562000616,0.001,86320.0,86319.0,0.04033871]
[1764562000992,0.001,86320.0,86319.0,0.01657871]
[1764562001709,0.23169549,86321.0,86319.0,0.01657871]
[1764562001910,0.001,86320.0,86319.0,0.01657871]
[1764562002428,0.23169549,86321.0,86319.0,0.01657871]
[1764562002611,0.23169064,86322.0,86320.0,0.01651]
[1764562002817,0.24327517,86322.0,86321.0,0.0281]
[1764562003018,0.24327517,86322.0,86321.0,0.05075219]
[1764562003418,0.24327517,86322.0,86321.0,0.07451219]
[1764562003598,0.24327517,86322.0,86321.0,0.02265219]
[1764562003797,0.25461203,86322.0,86321.0,0.02265219]
[1764562003996,0.24327517,86322.0,86321.0,0.02265219]
[1764562004592,0.24327517,86322.0,86321.0,0.03916219]
[1764562004798,0.24327517,86322.0,86321.0,0.06292219]
[1764562005198,0.24327517,86322.0,86321.0,0.06392219]
[1764562007115,0.24327517,86322.0,86321.0,0.04016219]
[1764562007659,0.24327517,86322.0,86321.0,0.02365219]
[1764562007821,0.25461203,86322.0,86321.0,0.02365219]
[1764562008032,0.24327517,86322.0,86321.0,0.02365219]
[1764562009478,0.01158426,86324.0,86321.0,0.06144219]
[1764562009681,0.01158426,86324.0,86323.0,0.01524]
[1764562010029,0.01158426,86324.0,86323.0,0.03779]
[1764562011148,0.01158426,86324.0,86323.0,0.01524]
[1764562011351,0.01158426,86324.0,86323.0,0.03779]
[1764562011549,0.01158426,86324.0,86323.0,0.01524]
[1764562013480,0.01158426,86324.0,86323.0,0.03779]
[1764562014935,0.01158399,86326.0,86323.0,0.03779]
[1764562015225,0.01158399,86326.0,86321.0,0.03423685]
[1764562015226,0.01158426,86324.0,86321.0,0.03423685]
[1764562015457,0.01158426,86324.0,86321.0,0.02265219]
[1764562015654,0.23168796,86323.0,86322.0,0.02255]
[1764562015850,0.23168796,86323.0,86321.0,0.02265219]
[1764562016007,0.23168796,86323.0,86322.0,0.03779]
[1764562017589,0.24326552,86326.0,86322.0,0.03779]
[1764562017792,0.01158412,86325.0,86323.0,0.02255]
[1764562018123,0.01158412,86325.0,86324.0,0.01524]
[1764562018597,0.23166917,86330.0,86324.0,0.03779]
[1764562018796,0.01158332,86331.0,86325.0,0.01158412]
[1764562018993,0.23167185,86329.0,86326.0,0.02255]
[1764562019198,0.23167615,86328.0,86326.0,0.02255]
[1764562019639,0.23167615,86328.0,86327.0,0.01524]
[1764562020064,0.23167615,86328.0,86327.0,0.03779]
[1764562021360,0.24325415,86330.0,86327.0,0.03779]
[1764562021684,0.01158158,86344.0,86332.0,0.01158319]
[1764562021901,0.24320812,86346.0,86343.0,0.01524]
[1764562022067,0.01158144,86345.0,86343.0,0.02265219]
[1764562022270,0.23163161,86344.0,86343.0,0.02265219]
[1764562022712,0.23163161,86344.0,86343.0,0.03789219]
[1764562022869,0.23163161,86344.0,86343.0,0.06044219]
[1764562023594,0.23163161,86344.0,86343.0,0.02265219]
[1764562023922,0.24296847,86344.0,86343.0,0.02265219]
[1764562024236,0.23163161,86344.0,86343.0,0.02265219]
[1764562025326,0.23263161,86344.0,86343.0,0.02265219]
[1764562026513,0.23263161,86344.0,86343.0,0.02265219]
[1764562026727,0.001,86344.0,86343.0,0.06044219]
[1764562028300,0.01299145,86354.0,86343.0,0.06044219]
[1764562028301,0.01158091,86349.0,86343.0,0.06044219]
[1764562028496,0.001,86344.0,86343.0,0.06044219]
[1764562028696,0.01158104,86348.0,86343.0,0.02265219]
[1764562028697,0.24320398,86348.0,86343.0,0.02265219]
[1764562028907,0.01158131,86346.0,86343.0,0.02265219]
[1764562029112,0.01158131,86346.0,86343.0,0.02565219]
[1764562029260,0.01158131,86346.0,86345.0,0.01524]
[1764562029665,0.01158091,86349.0,86345.0,0.03779]
[1764562029896,0.23162624,86346.0,86345.0,0.02255]
[1764562030140,0.24320755,86346.0,86343.0,0.02265219]
[1764562030520,0.24320755,86346.0,86345.0,0.01524]
[1764562030922,0.24320755,86346.0,86345.0,0.03779]
[1764562032081,0.01158104,86348.0,86345.0,0.03979]
[1764562032293,0.01158104,86348.0,86347.0,0.02721]
[1764562032694,0.01158104,86348.0,86347.0,0.04976]
[1764562033119,0.01299145,86354.0,86348.0,0.23162088]
[1764562033394,0.24318784,86353.0,86347.0,0.02721]
[1764562033591,0.24318784,86353.0,86348.0,0.02255]
[1764562033806,0.24318784,86353.0,86352.0,0.01524]
[1764562034000,0.24318784,86353.0,86352.0,0.03789219]
[1764562035157,0.00152977,86354.0,86352.0,0.03789219]
[1764562035398,0.00152977,86354.0,86353.0,0.03779]
[1764562037375,0.00152977,86354.0,86353.0,0.26939747]
[1764562043270,0.00152977,86354.0,86353.0,0.27139747]
[1764562044888,0.01157541,86390.0,86385.0,0.24309774]
[1764562045105,0.51157514,86392.0,86391.0,0.02811]
[1764562045303,0.7434736,86392.0,86391.0,0.05309]
[1764562045508,0.7434736,86392.0,86391.0,0.02811]
[1764562045926,0.7434736,86392.0,86385.0,0.02265219]
[1764562045927,0.23151899,86386.0,86385.0,0.02265219]
[1764562046129,0.23883899,86386.0,86385.0,0.02265219]
[1764562046804,0.25017585,86386.0,86385.0,0.02265219]
[1764562047610,0.25017585,86386.0,86385.0,0.02365219]
[1764562047611,0.23883899,86386.0,86385.0,0.02365219]
[1764562048711,0.25017585,86386.0,86385.0,0.02365219]
[1764562050546,0.25119523,86386.0,86385.0,0.02365219]
[1764562051106,0.23985837,86386.0,86385.0,0.02365219]
[1764562051423,0.25119523,86386.0,86385.0,0.001]
[1764562051631,0.23985837,86386.0,86385.0,0.001]
[1764562051835,0.25119523,86386.0,86385.0,0.001]
[1764562052251,0.57419523,86386.0,86385.0,0.001]
[1764562052535,0.58551056,86386.0,86385.0,0.001]
[1764562052761,0.59684742,86386.0,86385.0,0.001]
[1764562053495,0.23156456,86369.0,86368.0,0.02265219]
[1764562054842,0.23156456,86369.0,86368.0,0.02465219]
[1764562055687,0.23156456,86369.0,86368.0,0.002]
[1764562056211,0.24290142,86369.0,86368.0,0.002]
[1764562057351,0.23158869,86360.0,86359.0,0.03412219]
[1764562057890,0.23158869,86360.0,86359.0,0.05076219]
[1764562058090,0.23158869,86360.0,86359.0,0.07574219]
[1764562058863,0.23161551,86350.0,86349.0,0.02265219]
[1764562059061,0.23161551,86350.0,86331.0,0.23166582]
[1764562059062,0.23164304,86340.0,86338.0,0.03412219]
[1764562059263,0.23162489,86347.0,86338.0,0.07080312]
[1764562059464,0.01158117,86347.0,86343.0,0.01147]
[1764562059666,0.01158077,86350.0,86346.0,0.01664]
[1764562059865,0.01158091,86349.0,86344.0,0.03656158]
[1764562060063,0.01158037,86353.0,86349.0,0.01664]
[1764562060289,0.01158037,86353.0,86352.0,0.02811]
[1764562060691,0.01158037,86353.0,86352.0,0.05309]
[1764562061257,0.01157997,86356.0,86352.0,0.05309]
[1764562061463,0.24317376,86358.0,86355.0,0.01664]
[1764562061661,0.01157983,86357.0,86356.0,0.02498]
[1764562062197,0.01157983,86357.0,86356.0,0.04162]
[1764562062396,0.00732,86361.0,86356.0,0.04162]
[1764562062397,0.01157809,86370.0,86362.0,0.01157916]
[1764562062640,0.01157769,86373.0,86372.0,0.10397112]
[1764562062778,0.01157769,86373.0,86372.0,0.12061112]
[1764562062978,0.01157769,86373.0,86372.0,0.14559112]
[1764562064106,0.01157769,86373.0,86372.0,0.16924331]
[1764562064617,0.01157728,86376.0,86372.0,0.16924331]
[1764562064856,0.01157742,86375.0,86373.0,0.04162]
[1764562065036,0.00039531,86376.0,86375.0,0.25965848]
[1764562065247,0.00039531,86376.0,86375.0,0.28463848]
[1764562066416,0.00139531,86376.0,86375.0,0.28463848]
[1764562066619,0.00039531,86376.0,86375.0,0.28463848]
[1764562067013,0.00039531,86376.0,86375.0,0.28863848]
[1764562067677,0.00039531,86376.0,86375.0,0.40382653]
[1764562068445,0.00039531,86376.0,86375.0,0.40482653]
[1764562069886,0.00039531,86376.0,86375.0,1.60812153]
[1764562070063,0.00039531,86376.0,86375.0,1.55300953]
[1764562070270,0.00039531,86376.0,86375.0,0.41880115]
[1764562070469,0.00039531,86376.0,86375.0,1.25170153]
[1764562070825,0.00109622,86376.0,86375.0,1.38051153]
[1764562070993,0.00109622,86376.0,86375.0,0.40482653]
[1764562071358,0.00109622,86376.0,86375.0,0.97839253]
[1764562071561,0.00109622,86376.0,86375.0,1.01782953]
[1764562071767,0.00109622,86376.0,86375.0,0.40482653]
[1764562072213,0.00109622,86376.0,86375.0,0.99700453]
[1764562072375,0.00109622,86376.0,86375.0,1.15887153]
[1764562072574,0.00109622,86376.0,86375.0,1.15879253]
[1764562073011,0.23143868,86416.0,86403.0,0.23147344]
[1764562073206,0.00011859,86415.0,86414.0,0.37460674]
[1764562073400,0.00011859,86415.0,86414.0,0.39725893]
[1764562073580,0.00011859,86415.0,86414.0,0.42043893]
[1764562074232,0.00111859,86415.0,86414.0,0.42043893]
[1764562074567,0.00011859,86415.0,86414.0,0.42043893]
[1764562075012,0.00011859,86415.0,86414.0,0.42143893]
[1764562075219,0.00011859,86415.0,86414.0,0.42443893]
[1764562075391,0.00011859,86415.0,86414.0,0.42043893]
[1764562075694,0.00011859,86415.0,86414.0,0.42643893]
[1764562075892,0.00011859,86415.0,86414.0,0.43375893]
[1764562078307,0.00011859,86415.0,86414.0,0.43275893]
[1764562078513,0.00011859,86415.0,86414.0,0.42775893]
[1764562078708,0.00136038,86415.0,86414.0,0.42875893]
[1764562078908,0.00136038,86415.0,86414.0,0.43075893]
[1764562081605,0.00136038,86415.0,86414.0,4.36922792]
[1764562081915,3.8e-07,86415.0,86414.0,3.21400392]
[1764562082235,3.8e-07,86415.0,86414.0,3.07828692]
[1764562082451,3.8e-07,86415.0,86414.0,0.74643893]
[1764562082654,3.8e-07,86415.0,86414.0,0.74443893]
[1764562082834,3.8e-07,86415.0,86414.0,0.03480219]
[1764562082835,0.23144168,86415.0,86414.0,0.03480219]
[1764562083039,0.23144168,86415.0,86414.0,0.02665219]
[1764562083384,0.23144168,86415.0,86414.0,0.005]
[1764562083538,0.24277854,86415.0,86414.0,0.005]
[1764562083739,0.24277854,86415.0,86414.0,0.004]
[1764562084160,0.23146808,86405.0,86404.0,0.02265219]
[1764562084537,0.23146808,86405.0,86395.0,0.01215]
[1764562084538,0.23148951,86397.0,86395.0,0.01215]
[1764562084737,0.01157434,86398.0,86395.0,0.01215]
[1764562084991,0.24306187,86398.0,86397.0,0.01547]
[1764562085127,0.24306117,86398.0,86397.0,0.01547]
[1764562085725,0.23148683,86398.0,86397.0,0.01547]
[1764562086943,0.24306117,86398.0,86395.0,0.02372474]
[1764562087184,0.23149197,86397.0,86395.0,0.01215]
[1764562087588,0.23149197,86397.0,86396.0,0.01547]
[1764562088473,0.0115742,86399.0,86396.0,0.03865]
[1764562088674,0.002,86397.0,86396.0,0.02318]
[1764562088880,0.23148723,86398.0,86395.0,0.01215]
[1764562088881,0.24306157,86398.0,86395.0,0.01215]
[1764562089110,0.24306157,86398.0,86397.0,0.01547]
[1764562089622,0.0115742,86399.0,86397.0,0.01547]
[1764562089623,0.0115742,86399.0,86397.0,0.03865]
[1764562089931,0.0115742,86399.0,86398.0,0.11944112]
[1764562090083,0.0115742,86399.0,86398.0,0.01547]
[1764562090972,0.0115742,86399.0,86393.0,0.0342272]
[1764562090973,0.24306679,86396.0,86393.0,0.02265219]
[1764562091174,0.23151631,86387.0,86383.0,0.03480219]
[1764562092313,0.23151631,86387.0,86386.0,0.00152835]
[1764562093332,0.23151631,86387.0,86386.0,0.00252835]
[1764562094157,0.24285317,86387.0,86386.0,0.00252835]
[1764562094338,0.62837616,86387.0,86386.0,0.00252835]
[1764562094961,0.62937616,86387.0,86386.0,0.00252835]
[1764562095168,0.62937616,86387.0,86386.0,0.00152835]
[1764562095361,0.62837616,86387.0,86386.0,0.00152835]
[1764562095562,0.63537616,86387.0,86386.0,0.00152835]
[1764562096580,0.63637616,86387.0,86386.0,0.00152835]
[1764562098096,0.66473092,86387.0,86386.0,0.00152835]
[1764562098925,0.65773092,86387.0,86386.0,0.00152835]
[1764562099144,0.23158601,86361.0,86360.0,0.02265219]
[1764562099365,0.01158184,86342.0,86334.0,0.24324124]
[1764562099644,0.01158184,86342.0,86339.0,0.0351975]
[1764562100045,0.24322105,86342.0,86339.0,0.0351975]
[1764562100253,0.01158158,86344.0,86341.0,0.01578]
[1764562100462,0.2432144,86344.0,86343.0,0.01578]
[1764562100769,0.01158158,86344.0,86343.0,0.01578]
[1764562101678,0.24321319,86344.0,86343.0,0.01578]
[1764562102272,0.24321319,86344.0,86343.0,0.01878]
[1764562102473,0.24321319,86344.0,86343.0,0.01978]
[1764562103862,0.00732,86350.0,86344.0,0.23163161]
[1764562104067,0.01158104,86348.0,86343.0,0.04391]
[1764562104348,0.01158117,86347.0,86343.0,0.05549171]
[1764562104477,0.01157956,86359.0,86346.0,0.10397112]
[1764562104683,0.0115801,86355.0,86347.0,0.03991]
[1764562105042,0.01158077,86350.0,86342.0,0.02361184]
[1764562105185,0.01158104,86348.0,86345.0,0.10397112]
[1764562105384,0.23162356,86347.0,86345.0,0.10397112]
[1764562105597,0.23163161,86344.0,86342.0,0.01203]
[1764562105794,0.01158144,86345.0,86342.0,0.01203]
[1764562106563,0.01158131,86346.0,86342.0,0.01203]
[1764562106766,0.01158131,86346.0,86342.0,0.02361184]
[1764562106973,0.01158144,86345.0,86342.0,0.02361184]
[1764562107121,0.24321072,86345.0,86342.0,0.01203]
[1764562107321,0.23163429,86343.0,86342.0,0.01203]
[1764562107567,0.01158131,86346.0,86342.0,0.01203]
[1764562107772,0.23163417,86344.0,86342.0,0.01303]
[1764562107933,0.23163417,86344.0,86342.0,0.01603]
[1764562108145,0.23163417,86344.0,86342.0,0.01203]
[1764562108552,0.23163417,86344.0,86342.0,0.01703]
[1764562108943,0.23163417,86344.0,86342.0,0.01203]
[1764562110082,0.23163417,86344.0,86343.0,0.00137034]
[1764562111021,0.01158117,86347.0,86343.0,0.04038034]
[1764562111187,0.01158104,86348.0,86346.0,0.01597]
[1764562111425,0.24319888,86350.0,86347.0,0.01597]
[1764562111586,0.00732,86352.0,86346.0,0.01158131]
[1764562111810,0.23893239,86352.0,86351.0,0.028]
[1764562113083,0.2316182,86349.0,86348.0,0.02265219]
[1764562113491,0.2316182,86349.0,86348.0,0.03862219]
[1764562114045,0.2316182,86349.0,86348.0,0.06166219]
[1764562114345,0.00732,86352.0,86348.0,0.06166219]
[1764562114544,0.00732,86352.0,86350.0,0.01597]
[1764562114846,0.23893201,86352.0,86350.0,0.01597]
[1764562115573,0.23893201,86352.0,86351.0,0.01597]
[1764562116376,0.2316182,86349.0,86348.0,0.02265219]
[1764562116595,0.24295506,86349.0,86348.0,0.02265219]
[1764562116803,0.24295506,86349.0,86348.0,0.02386311]
[1764562118423,0.01158064,86351.0,86348.0,0.03983311]
[1764562118424,0.24319588,86351.0,86348.0,0.03983311]
[1764562118628,0.24319588,86351.0,86350.0,0.01597]
[1764562120311,0.24419588,86351.0,86350.0,0.01597]
[1764562120518,0.24319588,86351.0,86350.0,0.01597]
[1764562120912,0.24419588,86351.0,86350.0,0.01597]
[1764562121907,0.01258064,86351.0,86350.0,0.03901]
[1764562122663,0.01258064,86351.0,86350.0,0.01597]
[1764562122935,0.01258064,86351.0,86350.0,0.03901]
[1764562123702,0.01258064,86351.0,86350.0,0.04015716]
[1764562124438,0.01258064,86351.0,86350.0,0.01711716]
[1764562128101,0.01258064,86351.0,86350.0,0.04120716]
[1764562129352,0.01258064,86351.0,86350.0,0.01711716]
[1764562129753,0.01258064,86351.0,86350.0,0.04120716]
[1764562129990,0.001,86351.0,86350.0,0.04120716]
[1764562131129,0.001,86351.0,86350.0,0.07046079]
[1764562131323,0.01889742,86375.0,86368.0,0.01157836]
[1764562131526,0.01157769,86373.0,86369.0,0.10397112]
[1764562131752,0.01157782,86372.0,86370.0,0.02409]
[1764562131966,0.23156456,86369.0,86368.0,0.03493219]
[1764562132317,0.23156456,86369.0,86368.0,0.02265219]
[1764562132625,0.23160604,86354.0,86352.0,0.01228]
[1764562132824,0.23160478,86354.0,86352.0,0.03493219]
[1764562133024,0.24318452,86355.0,86353.0,0.01659]
[1764562133453,0.0115801,86355.0,86354.0,0.04068]
[1764562134656,0.0115801,86355.0,86354.0,0.04168]
[1764562135449,0.0115801,86355.0,86354.0,0.01759]
[1764562135658,0.0115801,86355.0,86354.0,0.02159]
[1764562136084,0.0115801,86355.0,86354.0,0.04568]
[1764562136284,0.01157983,86357.0,86354.0,0.04568]
[1764562136527,0.01157983,86357.0,86355.0,0.02409]
[1764562136699,0.01157983,86357.0,86356.0,0.01659]
[1764562137194,0.01157983,86357.0,86356.0,0.04068]
[1764562137395,0.01157983,86357.0,86356.0,0.01659]
[1764562137637,0.01157983,86357.0,86356.0,0.04068]
[1764562138186,0.23159138,86359.0,86356.0,0.04068]
[1764562138449,0.01157983,86357.0,86356.0,0.04068]
[1764562138640,0.01157983,86357.0,86354.0,0.001]
[1764562138841,0.24317922,86357.0,86356.0,0.01659]
[1764562139017,0.24317922,86357.0,86356.0,0.02059]
[1764562139242,0.24317922,86357.0,86356.0,0.04468]
[1764562139600,0.24317922,86357.0,86356.0,0.005]
[1764562140136,0.24317922,86357.0,86356.0,0.02159]
[1764562141190,0.01157983,86357.0,86356.0,0.02159]
[1764562141393,0.24317657,86357.0,86356.0,0.04568]
[1764562141596,0.24317657,86357.0,86356.0,0.02159]
[1764562142008,0.25451343,86357.0,86356.0,0.005]
[1764562142311,0.41295878,86357.0,86356.0,0.0059559]
[1764562142596,0.42453861,86357.0,86356.0,0.0059559]
[1764562142808,0.4244986,86357.0,86356.0,0.0049559]
[1764562143263,0.48702159,86357.0,86356.0,0.0009559]
[1764562143431,0.49064474,86357.0,86356.0,0.0039559]
[1764562143833,0.49064474,86357.0,86356.0,0.0009559]
[1764562144036,0.51549866,86357.0,86356.0,0.0009559]
[1764562144241,0.49064474,86357.0,86356.0,0.0009559]
[1764562145387,0.48702159,86357.0,86356.0,0.0009559]
[1764562145612,0.49164484,86357.0,86356.0,0.0009559]
[1764562145786,0.49364484,86357.0,86356.0,0.0009559]
[1764562146210,0.48902159,86357.0,86356.0,0.0009559]
[1764562146487,0.49434159,86357.0,86356.0,0.0009559]
[1764562146637,0.49534159,86357.0,86356.0,0.0009559]
[1764562146849,0.49734159,86357.0,86356.0,0.0009559]
[1764562147263,0.4274986,86357.0,86356.0,0.0009559]
[1764562147462,0.42348174,86357.0,86356.0,0.0009559]
[1764562147830,0.4348186,86357.0,86356.0,0.0009559]
[1764562148249,0.4318186,86357.0,86356.0,0.0009559]
[1764562153227,0.1014986,86357.0,86356.0,0.0009559]